Cogmind - Beta 15 @@@ ROGUE MODE // 2025.08.08 @ 05:10:06 Player: Naughtyusername Result: Destroyed by H-81 Overseer with Heavy Linear Accelerator Performance ------------- Evolutions (9) 4500 Regions Visited (23) 4600 Robots Destroyed (194) 970 Value Destroyed (8236) 8236 Prototype IDs (54) 1080 Alien Tech Used (2) 400 Bonus (5630) 5630 TOTAL SCORE: 25416 Bonus ------- High Alert Combat Kills 687 Follower Combat Kills 1102 Met Zhirov 300 Met Warlord at Base 500 MAIN.C Attacked Warlord 500 Met Warlord at Research 2000 Scanned by Researcher 500 Met Sigix 2000 Friendly Fire -1959 Cogmind --------- Core Integrity 0/1600 Matter 74/300 Energy 99/100 System Corruption 0% Temperature Cool (0) Movement Core (50) Location -1/Access Parts ------- > --- POWER (2) -------- (None) > --- PROPULSION (6) --- (None) > --- UTILITY (13) ----- Experimental Signal Interpreter Advanced Target Analyzer > --- WEAPON (4) ------- (None) > --- INVENTORY (5) ---- Heavy Shield Leg Advanced Force Field Tesla Rifle Dispersion Rifle Peak State ------------ > --- POWER ------------ Graviton Reactor Light Quantum Reactor > --- PROPULSION ------- Flexi-carbon Leg Myomer Leg Myomer Leg Myomer Leg Biometal Leg Biometal Leg > --- UTILITY ---------- Experimental Coolant Injector High-capacity Storage Unit Experimental Signal Interpreter Advanced Targeting Computer Improved Armor Integrity Analyzer Advanced Weapon Cycler Layered Heavy Armor Plating Graphene Brace Advanced Force Field System Mapper > --- WEAPON ----------- Perforator Hellfire Missile Launcher Phasing Sabre > --- INVENTORY -------- Neutrino Core Light Quantum Reactor Medium Treads Heavy Shield Leg Advanced Heat Sink Advanced Sensor Array Quantum Capacitor Advanced Phase Shifter Experimental Field Recycling Unit Core Reset Matrix Subatomic Replicator Hypervelocity EM Gauss Rifle Heavy Machine Gun KE Penetrator Compact Linear Accelerator Ragnarok Missile Launcher Sigix Containment Pod [Rating: 189] Favorites ----------- Power Light Fission Core Engine Makeshift Power Source Power Core Light Fission Core Reactor Vortex Chain Reactor Propulsion Improved Airjet Treads Medium Treads Leg Myomer Leg Wheel Compact Wheel Hover Unit Improved Airjet Flight Unit Cooled Q-thruster Utility Large Storage Unit Device Experimental Sensor Array Storage Large Storage Unit Processor Advanced Targeting Computer Hackware Advanced Hacking Suite Protection Hardened Light Armor Plating Weapon Phase Cannon Energy Gun Variable Charge Gun Energy Cannon Phase Cannon Ballistic Gun Light Assault Rifle Ballistic Cannon Assault Cannon Launcher Grenade Launcher Special Weapon Mining Laser Impact Weapon Heavy Mace Slashing Weapon Nanosword Piercing Weapon Vortex Lance Build | -11 -10 -10 -10 -8 -8 -8 -6 -6 -5 -5 -5 -5 -4 -4 -4 -4 -4 -3 -3 -3 -2 -2 -1 ------- Run | Yrd Mat Min Sub Mat Sto Rec Fac Ext Fac Upp Upp War Pro Fac Upp Upp Zhi Pro Res Qua Res Tes Acc Slots Evolved 18 | . . . . 4 . . 4 . 2 . . . . 2 . . . . 2 . 2 . 2 Power 1 | . . . . . . . . . . . . . . 1 . . . . . . . . . Propulsion 4 | . . . . 1 . . 2 . 1 . . . . . . . . . . . . . . Utility 11 | . . . . 2 . . 2 . 1 . . . . 1 . . . . 2 . 1 . 2 Weapon 2 | . . . . 1 . . . . . . . . . . . . . . . . 1 . . Parts Attached 196 | . 18 2 3 30 . 1 18 8 . 3 2 8 . 13 . . 3 2 10 9 17 45 4 Power 20 | . 2 . . 2 . . 2 1 . . . . . 1 . . . 1 . . 3 8 . Engine 3 | . 1 . . 1 . . 1 . . . . . . . . . . . . . . . . Core 5 | . 1 . . 1 . . 1 1 . . . . . 1 . . . . . . . . . Reactor 12 | . . . . . . . . . . . . . . . . . . 1 . . 3 8 . Propulsion 55 | . 6 . . 7 . . 5 1 . . . 2 . 5 . . . . 5 4 4 15 1 Treads 6 | . . . . . . . . . . . . . . . . . . . . . 4 2 . Leg 14 | . 2 . . 3 . . . . . . . . . . . . . . . . . 9 . Wheel 5 | . 4 . . 1 . . . . . . . . . . . . . . . . . . . Hover 29 | . . . . 3 . . 5 1 . . . 2 . 5 . . . . 5 4 . 3 1 Flight 1 | . . . . . . . . . . . . . . . . . . . . . . 1 . Utility 70 | . 3 2 2 12 . 1 6 5 . 2 1 4 . 6 . . 2 . 3 4 6 11 . Device 28 | . . 2 . 8 . . 1 2 . 1 . 3 . . . . . . 1 3 3 4 . Storage 9 | . 2 . 1 1 . 1 1 . . . . . . 1 . . 1 . . . . 1 . Processor 14 | . . . . . . . 4 3 . . 1 . . . . . . . 1 1 2 2 . Hackware 11 | . 1 . . 1 . . . . . . . . . 5 . . 1 . 1 . . 2 . Protection 8 | . . . 1 2 . . . . . 1 . 1 . . . . . . . . 1 2 . Artifact . | . . . . . . . . . . . . . . . . . . . . . . . . Weapon 51 | . 7 . 1 9 . . 5 1 . 1 1 2 . 1 . . 1 1 2 1 4 11 3 Energy Gun 10 | . . . . . . . 1 . . 1 . 1 . . . . . . . . . 4 3 Energy Cannon 13 | . . . . 4 . . 3 . . . 1 . . . . . . . 1 1 3 . . Ballistic Gun 6 | . 4 . . . . . . . . . . . . . . . . . . . . 2 . Ballistic Cannon 8 | . . . . 3 . . . 1 . . . . . 1 . . . . . . 1 2 . Launcher 6 | . 1 . 1 . . . 1 . . . . . . . . . 1 . . . . 2 . Special Weapon 3 | . 1 . . 1 . . . . . . . 1 . . . . . . . . . . . Impact Weapon 1 | . . . . 1 . . . . . . . . . . . . . . . . . . . Slashing Weapon 3 | . 1 . . . . . . . . . . . . . . . . . 1 . . 1 . Piercing Weapon 1 | . . . . . . . . . . . . . . . . . . 1 . . . . . Special Melee Weapon . | . . . . . . . . . . . . . . . . . . . . . . . . Unidentified Prototypes 25 | . . 1 . 2 . . 1 1 . . . 6 . 1 . . 2 2 1 . . 8 . Parts Lost 80 | . 6 . . 9 . . 4 2 1 . . 3 1 1 . . . 2 1 5 1 38 6 Power 9 | . 1 . . . . . 1 . . . . . . . . . . 1 . . 1 5 . Propulsion 27 | . 2 . . 3 . . 3 1 . . . 2 . . . . . . . 2 . 12 2 Utility 21 | . . . . 2 . . . . 1 . . . 1 1 . . . 1 . 2 . 10 3 Weapon 23 | . 3 . . 4 . . . 1 . . . 1 . . . . . . 1 1 . 11 1 Highest Loss Streak 18 | . 6 . . 4 . . 4 2 1 . . 3 1 1 . . . 1 1 3 1 18 3 To Critical Strikes . | . . . . . . . . . . . . . . . . . . . . . . . . Average Backups 14 | 6 10 19 23 20 12 10 10 14 13 14 15 14 13 13 14 14 13 13 14 13 10 10 3 Power 1 | 1 1 1 1 1 . . . 1 2 1 1 1 2 1 1 1 1 . . . 1 1 . Propulsion 1 | 4 . 1 4 3 . . . 1 1 1 1 . . 1 2 2 2 2 2 2 . 1 1 Utility 6 | . 2 3 5 7 7 6 5 7 7 7 8 6 7 8 9 9 7 7 9 7 4 3 1 Weapon 4 | 1 5 12 10 7 4 2 3 3 3 4 5 5 4 3 2 2 2 1 2 1 2 2 1 Tool/Special . | . . . . . . . . . . . . . . . . . . . . . . . . Unused Backups 80 | . 9 . 1 29 . 2 8 3 . 1 . 6 1 1 . . . . 4 2 4 7 2 Power 5 | . . . 1 2 . . . . . 1 . . . . . . . . . . . 1 . Propulsion 14 | . 5 . . 4 . . . . . . . 1 . . . . . . 2 . 1 . 1 Utility 33 | . 1 . . 7 . 2 8 . . . . 4 . . . . . . 2 2 3 4 . Weapon 25 | . 3 . . 15 . . . 3 . . . 1 1 1 . . . . . . . . 1 Tool/Special 3 | . . . . 1 . . . . . . . . . . . . . . . . . 2 . Average Slot Usage (%) 86 | . 81 100 100 92 74 85 82 91 87 92 94 95 75 85 94 94 83 89 85 82 79 77 28 Engine 1 | . 4 . . 5 . . . . . . . . . . . . . . . . . . . Core 5 | . 7 14 14 3 9 9 5 6 5 5 5 5 5 8 10 10 10 . . . . . . Reactor 1 | . . . . . . . . . . . . . . . . . . 4 4 4 7 6 . Leg 3 | . 10 . . 9 . . . . . . . . . . . . . . . . . 15 . Wheel 5 | . 14 28 28 11 . . . . . . . . . . . . . . . . . . . Hover 15 | . . . . 5 27 27 24 33 29 29 29 31 23 29 31 31 31 31 24 22 9 . 5 Device 12 | . . 11 5 15 18 18 9 4 5 11 11 10 10 7 10 10 7 9 11 18 20 20 3 Storage 6 | . 14 14 14 8 9 9 5 6 5 5 5 5 5 5 5 5 5 5 4 4 4 3 . Processor 9 | . . . . . . . 16 20 23 23 23 23 23 10 10 10 10 10 12 11 16 11 11 Hackware 5 | . 3 2 . . 9 9 6 6 5 . . . . 16 15 15 15 15 14 10 . . 3 Protection 1 | . . . 7 7 . . . . . . . . . . . . 2 . . . 1 1 . Energy Cannon 4 | . . . . 16 . . 2 4 4 5 4 5 4 5 5 5 . 5 3 2 4 1 . Ballistic Gun 3 | . 13 28 16 . . . . . . . . . . . . . . . . . . 3 . Ballistic Cannon 2 | . . . . 2 . 11 5 . . . . . . . 5 5 . . 1 . 3 3 . Launcher 1 | . . . 11 3 . . . . . . . . . . . . . . . . . . . Peak Build Rating 189 | 6 13 19 23 44 38 42 68 66 72 81 83 110 90 126 126 126 123 139 166 162 160 189 74 Average Rating 82 | 6 8 17 17 34 37 40 53 63 71 78 82 93 79 111 126 126 112 134 154 149 146 145 55 On Entrance 76 | 6 6 13 19 15 37 37 42 66 59 69 75 83 90 73 126 126 126 123 136 162 128 160 49 Naked Turns . | . . . . . . . . . . . . . . . . . . . . . . . . Heaviest Build 148 | 10 89 48 93 126 28 27 41 41 39 45 45 52 47 55 55 55 53 68 82 75 134 148 11 Greatest Support 230 | 20 32 32 32 60 27 27 45 45 45 45 45 62 44 74 74 74 74 74 76 85 211 230 26 Greatest Overweight (x) 27 | . 27 1 2 3 1 1 1 1 . . . 1 1 . . . . . 1 1 1 3 1 Average Overweight (x) . | . 1 1 1 . . . . . . . . . . . . . . . . . . . . Largest Inventory Capacity 25 | 8 25 20 25 25 15 15 15 15 15 15 15 15 15 15 15 15 15 15 15 15 15 20 5 Average Capacity 16 | 8 21 20 24 21 15 10 12 15 15 15 15 15 15 15 15 15 15 15 15 15 15 15 5 Most Carried 25 | 6 19 20 25 25 14 14 15 15 15 15 15 15 15 15 15 15 15 15 15 15 15 20 5 Average Carried 15 | 6 10 19 24 20 12 10 10 14 13 14 15 14 14 14 15 15 14 13 14 14 13 13 4 Final Capacity 25 | 8 20 20 25 15 15 10 15 15 15 15 15 15 15 15 15 15 15 15 15 15 15 5 5 Final Carried 25 | 6 18 20 25 11 14 10 15 15 15 15 15 15 15 15 15 15 15 14 15 10 15 4 5 Class Distribution -------------------- 27% | Mutant 19% | Hacker-Scout 11% | Scout 10% | Scavenger-Tank 6% | Scavenger-Mutant 6% | Scavenger-Gunner 5% | Tank 5% | Commander-Mutant Dominant Class ---------------- Mutant | -10/Materials Mutant | -10/Mines Scavenger-Mutant | -10/Subcaves Scavenger-Tank | -8/Materials Commander-Mutant | -8/Storage Commander-Mutant | -8/Recycling Mutant | -6/Factory Mutant | -6/Extension Scout | -5/Factory Scout | -5/Upper Caves Scout | -5/Upper Caves Commander-Scout | -5/Warlord Scout | -4/Proximity Caves Hacker-Scout | -4/Factory Hacker-Scout | -4/Upper Caves Hacker-Scout | -4/Upper Caves Hacker-Scout | -4/Zhirov Hacker-Scout | -3/Proximity Caves Hacker-Scout | -3/Research Hacker-Ninja | -3/Quarantine Mutant | -2/Research Scavenger-Gunner | -2/Testing Mutant | -1/Access Resources | -11 -10 -10 -10 -8 -8 -8 -6 -6 -5 -5 -5 -5 -4 -4 -4 -4 -4 -3 -3 -3 -2 -2 -1 ----------- Run | Yrd Mat Min Sub Mat Sto Rec Fac Ext Fac Upp Upp War Pro Fac Upp Upp Zhi Pro Res Qua Res Tes Acc Matter Collected 7309 | 200 316 44 338 896 30 310 360 253 . 65 60 . 157 94 . 70 . 136 123 332 388 3116 21 Remotely . | . . . . . . . . . . . . . . . . . . . . . . . . Salvage Created 8183 | . 621 88 276 1203 36 732 902 398 . 57 152 . 28 140 . . . 199 241 518 177 2415 . Parts 353 | . 28 4 24 73 1 16 32 15 . 1 2 . 1 4 . . . 3 6 36 6 101 . Haulers Intercepted 15 | . 1 . . 3 . . 5 . . . . . . 1 . . . . 2 . 1 2 . Recyclers Shooed 7 | . 3 . . 1 . . 2 1 . . . . . . . . . . . . . . . Parts Field Recycled . | . . . . . . . . . . . . . . . . . . . . . . . . Retrieved Matter . | . . . . . . . . . . . . . . . . . . . . . . . . Parts Self-Destructed 12 | . . . 6 . . . . . . 1 2 . 2 . . . . 1 . . . . . Prevented . | . . . . . . . . . . . . . . . . . . . . . . . . Kills | -11 -10 -10 -10 -8 -8 -8 -6 -6 -5 -5 -5 -5 -4 -4 -4 -4 -4 -3 -3 -3 -2 -2 -1 ------- Run | Yrd Mat Min Sub Mat Sto Rec Fac Ext Fac Upp Upp War Pro Fac Upp Upp Zhi Pro Res Qua Res Tes Acc Combat Hostiles Destroyed 128 | . 7 2 12 31 . 3 5 5 . 1 . . 1 . . . . 3 3 8 2 45 . Melee 3 | . 1 . . . . . . . . . . . 1 . . . . . . 1 . . . Guns 9 | . 1 2 . . . . . . . . . . . . . . . . . . . 6 . Cannons 51 | . . . . 20 . 3 . 3 . 1 . . . . . . . . . . 2 22 . AOE 60 | . 5 . 12 11 . . 5 . . . . . . . . . . 2 3 7 . 15 . Classes Destroyed 23 | . 4 . 2 5 . 2 . . . . . . . . . . . 1 . 2 1 6 . Worker 10 | . . . . 3 . . 3 . . . . . . 1 . . . . . 1 . 2 . Builder 13 | . . . . . . 1 3 1 . . . . . . . . . . . 4 . 4 . Tunneler 3 | . . . . 1 . 1 1 . . . . . . . . . . . . . . . . Hauler 16 | . 1 . . 3 . 1 5 . . . . . . 1 . . . . 2 . 1 2 . Recycler 11 | . 4 . . 3 . 1 2 . . . . . . . . . . . . . . 1 . Operator 5 | . 2 . . . . . . . . . . . . 1 . . . . . 2 . . . Watcher 1 | . . . . . . . . . . . . . . . . . . . . 1 . . . Swarmer 31 | . . . . 13 . . 4 . . . . . 1 . . . . . 3 2 . 8 . Grunt 39 | . 7 2 . 9 1 1 1 1 . 1 . . . . . . . 3 . 4 . 9 . Brawler 1 | . . . . . . . . . . . . . . . . . . . . . . 1 . Protector 1 | . . . . . . 1 . . . . . . . . . . . . . . . . . Researcher 1 | . . . . . . . . . . . . . . . . . . . . . . 1 . Sentry 15 | . . . . 8 . 3 . 3 . . . . . . . . . . . . 1 . . Specialist 1 | . . . . . . . . . . . . . . . . . . . . . . 1 . Hunter 15 | . . . . 1 . 1 . 1 . . . . . . . . . . . . . 12 . Programmer 11 | . . . . . . . . . . . . . . . . . . . . 2 . 9 . Striker 2 | . . . . . . . . . . . . . . . . . . . . . . 2 . Executioner 1 | . . . . . . . . . . . . . . . . . . . . . 1 . . Alpha 7 1 | . . . . . . . . . . . . . . . . . . . . . . 1 . Protovariant D 1 | . . . . . . . . . . . . . . . . . . . . . . 1 . Protovariant P 1 | . . . . . . . . . . . . . . . . . . . . . . 1 . Artisan 1 | . . . 1 . . . . . . . . . . . . . . . . . . . . Subdweller 13 | . . . 12 . . 1 . . . . . . . . . . . . . . . . . Packrat 1 | . . . . . . . . . . . 1 . . . . . . . . . . . . Samaritan 1 | . . . . . . . . . . . . . . . . . . 1 . . . . . Best Kill Streak 12 | . 6 1 6 7 . 2 12 1 . 1 . . 1 1 . . . 3 3 6 1 9 . Combat Bots Only 6 | . 6 1 6 4 . 1 5 1 . 1 . . 1 . . . . 3 3 4 1 5 . Max Kills in Single Turn 4 | . 3 1 2 3 1 1 3 1 . 1 1 . 1 1 . . . 2 1 2 1 4 . Gunslinging . | . . . . . . . . . . . . . . . . . . . . . . . . Exploded 3 | . 3 . 2 2 . . 2 . . . . . . . . . . 1 1 2 . 3 . Melee 1 | . 1 . . . . . . . . . . . 1 . . . . . . 1 . . . Uniques/NPCs Destroyed 1 | . . . . . . . . 1 . . . . . . . . . . . . . . . A7 (-6/Extension) Combat | -11 -10 -10 -10 -8 -8 -8 -6 -6 -5 -5 -5 -5 -4 -4 -4 -4 -4 -3 -3 -3 -2 -2 -1 -------- Run | Yrd Mat Min Sub Mat Sto Rec Fac Ext Fac Upp Upp War Pro Fac Upp Upp Zhi Pro Res Qua Res Tes Acc Hostile Shots Fired 1338 | . 43 3 8 157 5 6 9 59 7 5 . 18 22 6 2 2 . 18 19 118 12 686 133 Missed 462 | . 5 1 3 39 . 4 4 29 3 3 . 10 10 3 . 2 . 8 10 65 2 201 60 Hits 876 | . 38 2 5 118 5 2 5 30 4 2 . 8 12 3 2 . . 10 9 53 10 485 73 Melee 1 | . . . . . . . . . . . . . . . . . . . . . . 1 . Projectile 875 | . 38 2 5 118 5 2 5 30 4 2 . 8 12 3 2 . . 10 9 53 10 484 73 AOE 2 | . . . . . . . . . . . . . . . . . . . . . . 2 . Critical Strikes 35 | . 1 . . 1 1 . . . . . . . . . . . . . . 4 . 26 2 Actively Blocked 32 | . . . . . . . . . . . . . . . . . . . . 4 . 26 2 Part Disruptions 2 | . . . . 1 . . . . . . . . . . . . . . . 1 . . . Damage Taken 17545 | . 604 37 153 1539 75 26 601 433 78 37 . 431 189 67 46 . . 197 232 1186 204 9391 2019 Core 3731 | . 157 . 91 212 15 14 38 43 . . . 69 50 . . . . 18 49 159 27 1137 1652 Absorbed by Shields 1647 | . . . . 136 . 4 . 47 . . . . . . . . . . . . 69 1391 . Reduced by Siege Mode 643 | . . . . . . . . . . . . . . . . . . . . . . 643 . Redirected to Shielding 158 | . . . 3 . . . . . . . . . 35 . . . . 120 . . . . . Regen/Repaired (Parts) 616 | . . . . 11 143 . 44 . . . . 68 . 50 . . . . 146 24 130 . . Core Remaining (%) 65 | 100 . . . . . 56 . 90 . . . . 88 . . . . 98 . 74 . 19 . Volleys Fired 843 | . 40 9 30 136 2 26 41 101 9 62 8 9 34 56 29 . . 25 22 41 27 134 2 Largest 4 | . 2 2 2 3 1 2 2 1 1 1 1 1 1 1 1 . . 1 1 1 2 4 2 Hottest 313 | . 80 40 40 180 30 74 90 90 85 85 85 225 85 85 85 . . 260 260 260 174 313 130 Shots Fired 1113 | . 76 18 32 226 2 52 47 101 9 62 8 9 33 56 29 . . 25 22 43 32 228 3 Gun 160 | . 72 18 5 . . . . . . . . 2 . . . . . . . . . 60 3 Cannon 824 | . . . . 195 . 52 43 98 9 62 8 7 33 56 29 . . 20 15 26 32 139 . Launcher 117 | . 4 . 27 19 2 . 4 3 . . . . . . . . . 5 7 17 . 29 . Special 12 | . . . . 12 . . . . . . . . . . . . . . . . . . . Kinetic 401 | . 70 18 5 44 . 52 19 7 . . . . . . . . . . 3 1 23 159 . Thermal 605 | . 2 . . 163 . . 24 91 9 62 8 9 33 56 29 . . 25 19 42 9 24 . Explosive 88 | . 4 . 27 19 2 . 4 3 . . . . . . . . . . . . . 29 . Electromagnetic 19 | . . . . . . . . . . . . . . . . . . . . . . 16 3 Robot Hit Streak 28 | . 12 6 10 12 . 4 6 6 . 6 4 . . 13 . . . 4 5 8 8 28 4 Robot Miss Streak 12 | . 2 1 1 4 . 6 2 4 . 2 . . . 2 . . . . 2 2 2 12 . Penetration Max 1 | . . . . . . . . . . . . . . . . . . . . . . 1 . Secondary Targets 2 | . 1 1 . . . . . . . . . . . . . . . . . . . . . Max Gunslinging Chain 1 | . 1 1 . . . . . . . . . . . . . . . . . . . . . Shots Hit Robots 529 | . 61 10 12 101 . 39 29 33 . 6 3 . . 12 . . . 3 6 22 14 176 2 Core Hits 349 | . 33 6 30 66 5 10 29 10 . 2 2 . 1 3 . . . 7 7 22 4 110 2 Critical Kills 15 | . 1 . . . . . 1 1 . . . . . . . . . . . . 1 11 . Critical Parts Destroyed 30 | . . . . . . 2 1 3 . . . . . . . . . . . . . 24 . Critical Strikes 57 | . 1 . . . . 3 3 4 . . . . . . . . . . . 3 1 42 . Meltdown 3 | . . . . . . . 1 1 . . . . . . . . . . . . 1 . . Destroy 36 | . 1 . . . . . . . . . . . . . . . . . . . . 35 . Blast 9 | . . . . . . 1 1 . . . . . . . . . . . . . . 7 . Smash 6 | . . . . . . 2 1 3 . . . . . . . . . . . . . . . Sunder 3 | . . . . . . . . . . . . . . . . . . . . 3 . . . Melee Attacks 96 | . 7 . . 1 . 15 19 11 . . . . . . . . . . 21 20 . 2 . Impact 46 | . . . . 1 . 15 19 11 . . . . . . . . . . . . . . . Slashing 20 | . 7 . . . . . . . . . . . . . . . . . 10 1 . 2 . Piercing . | . . . . . . . . . . . . . . . . . . . . . . . . Entropic 30 | . . . . . . . . . . . . . . . . . . . 11 19 . . . Sneak Attacks 21 | . . . . . . 1 5 7 . . . . . . . . . . 2 6 . . . Combat Hostiles . | . . . . . . . . . . . . . . . . . . . . . . . . Follow-up Attacks . | . . . . . . . . . . . . . . . . . . . . . . . . Damage Inflicted 27486 | . 907 72 995 3095 176 1997 2529 1675 . 149 88 . 18 365 . . . 577 833 2793 592 10560 65 Guns 1978 | . 502 72 25 . . . . . . . . . . . . . . . . . . 1328 51 Cannons 10038 | . . . . 2091 . 780 482 1082 . 149 88 . . 365 . . . 92 . 142 580 4187 . Explosions 10819 | . 336 . 970 965 176 . 1284 68 . . . . . . . . . 485 274 1217 . 5044 . Melee 4567 | . 69 . . . . 1217 763 525 . . . . . . . . . . 559 1434 . . . Ramming 60 | . . . . 15 . . . . . . . . 18 . . . . . . . 12 1 14 Kinetic 6539 | . 479 72 25 550 . 780 220 19 . . . . . . . . . . . . 294 4100 . Thermal 7849 | . 23 . . 1565 . . 1099 1063 . 149 88 . . 365 . . . 577 274 1359 286 1001 . Explosive 7938 | . 336 . 970 897 176 . 447 68 . . . . . . . . . . . . . 5044 . Electromagnetic 533 | . . . . 68 . . . . . . . . . . . . . . . . . 414 51 Impact 2505 | . . . . . . 1217 763 525 . . . . . . . . . . . . . . . Slashing 69 | . 69 . . . . . . . . . . . . . . . . . . . . . . Piercing . | . . . . . . . . . . . . . . . . . . . . . . . . Entropic 1993 | . . . . . . . . . . . . . . . . . . . 559 1434 . . . Highest Corruption 27 | . . . . . . . 2 2 . . . 9 9 1 1 1 1 1 1 7 . 27 . Average Corruption 6 | . . . . . . . 1 2 . . . 8 9 1 1 1 1 1 1 3 . 15 . Corruption Purged . | . . . . . . . . . . . . . . . . . . . . . . . . Corruption Blocked . | . . . . . . . . . . . . . . . . . . . . . . . . Effects 131 | . . . . . . . 1 14 . . . 1 12 4 2 3 1 3 1 14 . 75 . Message Errors 30 | . . . . . . . . 1 . . . . 5 . 1 1 . 1 . 3 . 18 . Matter Fused 30 | . . . . . . . . 5 . . . 1 5 1 . . . 1 . 5 . 12 . Heat Flow Errors 18 | . . . . . . . . 2 . . . . . . 1 1 . 1 1 1 . 11 . Energy Discharges 20 | . . . . . . . 1 3 . . . . . 3 . 1 . . . 3 . 9 . Data Loss (minor) 9 | . . . . . . . . 2 . . . . . . . . 1 . . . . 6 . Data Loss (major) 3 | . . . . . . . . . . . . . 1 . . . . . . . . 2 . Misfires 5 | . . . . . . . . . . . . . . . . . . . . 2 . 3 . Alerts 2 | . . . . . . . . 1 . . . . . . . . . . . . . 1 . Misdirections 6 | . . . . . . . . . . . . . . . . . . . . . . 6 . Weapon Failures 8 | . . . . . . . . . . . . . 1 . . . . . . . . 7 . Overload Shots 2 | . . . . . . . . . . . . 2 . . . . . . . . . . . Overflow Damage 2898 | . 14 . . 48 . 865 455 228 . . 13 . . . . . . 54 63 430 . 728 . Projectiles 316 | . . . . 48 . 56 . 6 . . 13 . . . . . . 30 . 5 . 158 . Explosions 1026 | . 14 . . . . . 319 . . . . . . . . . . 24 45 54 . 570 . Melee 1556 | . . . . . . 809 136 222 . . . . . . . . . . 18 371 . . . Knockbacks 69 | . . . . 6 . 9 4 6 . . . . . . . . . . . . 1 43 . Impact 13 | . . . . 1 . 6 1 5 . . . . . . . . . . . . . . . Kinetic 51 | . . . . 5 . 2 3 1 . . . . . . . . . . . . 1 39 . Secondary 5 | . . . . . . 1 . . . . . . . . . . . . . . . 4 . Self-Inflicted Damage 932 | . 82 . 43 159 . . 399 . . . . . 9 . . . . . 50 . . 185 5 Shots 20 | . 3 . 2 8 . . 4 . . . . . . . . . . . 1 . . 2 . Rammed 12 | . 1 . . 1 . . . . . . . . 1 . . . . . . . 1 1 7 Targets Rammed 12 | . 1 . . 1 . . . . . . . . 1 . . . . . . . 1 1 7 Kicked . | . . . . . . . . . . . . . . . . . . . . . . . . Crushed . | . . . . . . . . . . . . . . . . . . . . . . . . Highest Temperature 479 | . 20 14 . 362 6 162 210 479 156 255 150 313 138 250 199 201 142 198 246 229 160 197 . Average Temperature 101 | . 5 5 . 114 4 60 61 128 71 95 58 123 46 126 114 121 71 45 107 102 47 62 . Received Heat Transfer 1410 | . 324 21 18 576 45 9 9 75 . 18 . 18 . 9 9 . . 42 . 90 . 66 81 Effects 13 | . . . . 1 . . . 8 . 4 . . . . . . . . . . . . . Shutdowns 3 | . . . . . . . . 3 . . . . . . . . . . . . . . . Energy Bleed 5 | . . . . 1 . . . 4 . . . . . . . . . . . . . . . Interference 4 | . . . . . . . . . . 4 . . . . . . . . . . . . . Damage (minor) 1 | . . . . . . . . 1 . . . . . . . . . . . . . . . Siege Activations 2 | . . . . . . . . . . . . . . . . . . . . . . 2 . Total Turns 58 | . . . . . . . . . . . . . . . . . . . . . . 58 . Longest Duration 49 | . . . . . . . . . . . . . . . . . . . . . . 49 . Martial Activations . | . . . . . . . . . . . . . . . . . . . . . . . . Shielding Activations . | . . . . . . . . . . . . . . . . . . . . . . . . Robots Disrupted . | . . . . . . . . . . . . . . . . . . . . . . . . Combat Hostiles . | . . . . . . . . . . . . . . . . . . . . . . . . Robots Corrupted 12 | . . . . . . 7 2 2 . . . . . . . . . . . . . 1 . Combat Hostiles 6 | . . . . . . 4 . 1 . . . . . . . . . . . . . 1 . Parts Fried 12 | . . . . . . 5 1 3 . . . . . . . . . . . . . 3 . Impact Corruptions 42 | . . . . . . 30 6 6 . . . . . . . . . . . . . . . Robots Melted 5 | . . . . . . . 1 1 . . . . . 1 . . . 1 . . 1 . . Combat Hostiles 2 | . . . . . . . . 1 . . . . . . . . . 1 . . . . . Parts Melted 14 | . . . . 4 2 . 1 2 . . . . . 2 . . . . 1 1 1 . . Heat Transferred 9584 | . 50 . . 2529 . . 896 1147 . 185 111 . . 444 . . . 911 400 1988 259 664 . Parts Sabotaged . | . . . . . . . . . . . . . . . . . . . . . . . . Parts Stolen . | . . . . . . . . . . . . . . . . . . . . . . . . Parts Stripped . | . . . . . . . . . . . . . . . . . . . . . . . . Power Chain Reactions . | . . . . . . . . . . . . . . . . . . . . . . . . Alert | -11 -10 -10 -10 -8 -8 -8 -6 -6 -5 -5 -5 -5 -4 -4 -4 -4 -4 -3 -3 -3 -2 -2 -1 ------- Run | Yrd Mat Min Sub Mat Sto Rec Fac Ext Fac Upp Upp War Pro Fac Upp Upp Zhi Pro Res Qua Res Tes Acc Maximum Alert Level 4 | . . . . 3 1 1 2 2 . . . . . . . . . . . 1 1 4 3 Low Security (%) 68 | 100 100 100 . 46 48 81 16 21 100 . . . . 100 . . . . 100 80 94 62 . Level 1 16 | . . . . 31 51 18 56 34 . . . . . . . . . . . 19 5 7 . Level 2 10 | . . . . 17 . . 27 43 . . . . . . . . . . . . . 10 50 Level 3 4 | . . . . 3 . . . . . . . . . . . . . . . . . 17 50 Level 4 . | . . . . . . . . . . . . . . . . . . . . . . 2 . Level 5 . | . . . . . . . . . . . . . . . . . . . . . . . . High Security . | . . . . . . . . . . . . . . . . . . . . . . . . Max Security . | . . . . . . . . . . . . . . . . . . . . . . . . Peak Influence 1222 | . 152 56 . 752 386 224 432 648 153 . . . . 159 . . . . 93 327 212 1222 730 Initial 730 | . . . . . 193 150 210 190 151 . . . . 159 . . . . . 47 192 9 730 Average 189 | . 35 10 . 248 255 181 303 395 138 . . . . 49 . . . . 6 118 92 319 690 Influence Increases 8247 | . 294 114 . 1416 343 292 713 1107 26 20 5 . 35 470 . 60 . 85 211 671 150 2089 146 Destroy 0b10 Robot/C 2960 | . 140 80 . 620 160 60 100 520 . 20 . . 20 . . . . 60 60 160 40 920 . Destroy 0b10 Robot/NC 340 | . 35 . . 50 5 60 70 5 . . 5 . . 15 . . . . 10 35 5 45 . Destroy Leader 544 | . 32 20 . 166 52 . 20 80 . . . . . 2 . . . 10 14 32 12 104 . Allied During Kill 305 | . . 14 . . 81 13 . 197 . . . . . . . . . . . . . . . Successful Hack 476 | . 33 . . 63 10 30 83 93 14 . . . . 36 . . . . 15 36 . 42 21 Select Force Hacks 170 | . . . . . . 90 30 . . . . . . . . . . . . . . . 50 Disable Machine 465 | . 30 . . 75 . . 90 . . . . . . 15 . . . . 30 60 15 150 . Anti-Garrison Action 150 | . . . . 150 . . . . . . . . . . . . . . . . . . . Destroy Structure 1322 | . 24 . . 127 20 24 65 77 12 . . . . 72 . . . . 52 78 33 738 . Advance Influence 300 | . . . . . . . 150 . . . . . . 150 . . . . . . . . . Partial Spotted 150 | . . . . . . 15 15 30 . . . . . 15 . . . . 15 15 45 . . Lose Combat Pursuer 1065 | . . . . 165 15 . 90 105 . . . . 15 165 . 60 . 15 15 255 . 90 75 Influence Decreases 7521 | . 294 114 . 957 416 534 468 1185 240 117 5 . 20 395 90 50 10 85 126 414 475 888 638 Entered New Map 1716 | . . . . . 266 236 84 199 160 37 . . . 6 34 . 10 . . 38 150 8 488 Time Decay 3975 | . 244 114 . 567 70 278 334 326 40 80 5 . 10 379 56 50 . 75 116 326 315 500 90 Lost Part 750 | . 50 . . 90 . . 40 20 10 . . . 10 10 . . . 10 10 50 10 380 60 Lost Ally 480 | . . . . . 80 20 10 340 30 . . . . . . . . . . . . . . Purge Threat 600 | . . . . 300 . . . 300 . . . . . . . . . . . . . . . Squads Dispatched 66 | . 2 . . 11 4 . 9 6 2 . . . . 8 . . . . 4 7 . 11 2 Investigation 26 | . 2 . . 4 3 . 6 1 2 . . . . 2 . . . . 1 3 . . 2 Extermination 14 | . . . . . . . 2 . . . . . . 3 . . . . 3 2 . 4 . Reinforcement 21 | . . . . 4 1 . 1 4 . . . . . 3 . . . . . 1 . 7 . Assault 3 | . . . . 2 . . . 1 . . . . . . . . . . . . . . . Garrison 2 | . . . . 1 . . . . . . . . . . . . . . . 1 . . . Intercept . | . . . . . . . . . . . . . . . . . . . . . . . . Searches Triggered . | . . . . . . . . . . . . . . . . . . . . . . . . Construction Impeded 7 | . . . . 1 . . . 4 . . . . . . . . . . . . . 2 . Haulers Reinforced 3 | . . . . . . . 1 . . . . . . 1 . . . . . . . 1 . Active Scanning Responses . | . . . . . . . . . . . . . . . . . . . . . . . . Cargo Convoy Interrupts 1 | . . . . . . . 1 . . . . . . . . . . . . . . . . Stealth | -11 -10 -10 -10 -8 -8 -8 -6 -6 -5 -5 -5 -5 -4 -4 -4 -4 -4 -3 -3 -3 -2 -2 -1 --------- Run | Yrd Mat Min Sub Mat Sto Rec Fac Ext Fac Upp Upp War Pro Fac Upp Upp Zhi Pro Res Qua Res Tes Acc Distress Signals 19 | . . . . 3 2 2 2 . 1 . . . . . . . . . 1 1 4 2 1 Communications Jammed 6 | . . . . . . . . . . . . . . . . . . . . 6 . . . Distress Signals 6 | . . . . . . . . . . . . . . . . . . . . 6 . . . Times Spotted 360 | . 20 4 16 57 12 5 15 30 5 1 . 12 8 20 7 2 . 4 6 46 7 63 20 Peak Tracking Total 18 | . 7 2 7 10 4 1 5 11 5 1 . 12 5 6 7 4 . 3 3 16 6 11 18 Tactical Retreats 33 | . . . . 4 1 . 3 3 . . . . 1 6 . 1 . 1 1 5 . 5 2 Traps | -11 -10 -10 -10 -8 -8 -8 -6 -6 -5 -5 -5 -5 -4 -4 -4 -4 -4 -3 -3 -3 -2 -2 -1 ------- Run | Yrd Mat Min Sub Mat Sto Rec Fac Ext Fac Upp Upp War Pro Fac Upp Upp Zhi Pro Res Qua Res Tes Acc Traps Triggered 12 | . . . . . 1 . 4 5 . . . . . . . . . . 1 1 . . . Indirectly . | . . . . . . . . . . . . . . . . . . . . . . . . Trap Hack Attempts . | . . . . . . . . . . . . . . . . . . . . . . . . Triggered . | . . . . . . . . . . . . . . . . . . . . . . . . Disarmed . | . . . . . . . . . . . . . . . . . . . . . . . . Reprogrammed . | . . . . . . . . . . . . . . . . . . . . . . . . Reused . | . . . . . . . . . . . . . . . . . . . . . . . . Traps Extracted . | . . . . . . . . . . . . . . . . . . . . . . . . Installed . | . . . . . . . . . . . . . . . . . . . . . . . . Triggered . | . . . . . . . . . . . . . . . . . . . . . . . . Machines | -11 -10 -10 -10 -8 -8 -8 -6 -6 -5 -5 -5 -5 -4 -4 -4 -4 -4 -3 -3 -3 -2 -2 -1 ---------- Run | Yrd Mat Min Sub Mat Sto Rec Fac Ext Fac Upp Upp War Pro Fac Upp Upp Zhi Pro Res Qua Res Tes Acc Machines Disabled 35 | . 2 . . 6 . . 6 . . . . 1 . 1 . . . . 2 4 1 12 . Max in Single Turn 4 | . 1 . . 3 . . 4 . . . . 1 . 1 . . . . 1 1 1 1 . Garrison Access 8 | . . . . 1 1 . 1 . . . . . . 2 . . . . . 1 2 . . Machines Repaired . | . . . . . . . . . . . . . . . . . . . . . . . . Machines Dismantled . | . . . . . . . . . . . . . . . . . . . . . . . . Machines Sabotaged 1 | . . . . . . . . . . . . . . . . . . . . . . . 1 Overloaded Fab Kills . | . . . . . . . . . . . . . . . . . . . . . . . . Hacking | -11 -10 -10 -10 -8 -8 -8 -6 -6 -5 -5 -5 -5 -4 -4 -4 -4 -4 -3 -3 -3 -2 -2 -1 --------- Run | Yrd Mat Min Sub Mat Sto Rec Fac Ext Fac Upp Upp War Pro Fac Upp Upp Zhi Pro Res Qua Res Tes Acc Machines Accessed 130 | . 7 . . 13 9 9 14 11 2 . 1 10 . 19 2 . 4 . 7 13 . 5 4 Terminals 75 | . 7 . . 8 6 4 6 11 2 . . . . 11 1 . . . 5 9 . 2 3 Fabricators 4 | . . . . . . . 2 . . . . . . 2 . . . . . . . . . Repair Stations 6 | . . . . 1 1 . 1 . . . . . . 1 . . . . 1 1 . . . Recycling Units 12 | . . . . 1 1 3 4 . . . . . . 3 . . . . . . . . . Scanalyzers 8 | . . . . 2 . . . . . . . . . . . . . . 1 2 . 3 . Garrison Access 7 | . . . . 1 1 . 1 . . . . . . 2 . . . . . 1 . . 1 Total Hacks 378 | . 26 . . 55 26 45 38 24 6 . 1 13 . 60 2 . 17 . 17 35 . 7 6 Successful 271 | . 17 . . 35 16 39 22 16 2 . 1 13 . 46 2 . 17 . 11 28 . 3 3 Failed 107 | . 9 . . 20 10 6 16 8 4 . . . . 14 . . . . 6 7 . 4 3 Catastrophic 10 | . . . . 3 . . 2 . 2 . . . . 1 . . . . . . . 1 1 Database Lockouts . | . . . . . . . . . . . . . . . . . . . . . . . . Manual 166 | . 17 . . 33 15 19 18 11 2 . . 1 . 27 . . . . 5 16 . . 2 Terminals 245 | . 26 . . 40 20 15 19 24 6 . . . . 47 1 . . . 12 27 . 3 5 Fabricators 10 | . . . . . . . 7 . . . . . . 3 . . . . . . . . . Repair Stations 15 | . . . . 3 2 . 3 . . . . . . 2 . . . . 3 2 . . . Recycling Units 23 | . . . . 3 2 5 8 . . . . . . 5 . . . . . . . . . Scanalyzers 18 | . . . . 7 . . . . . . . . . . . . . . 2 5 . 4 . Garrison Access 10 | . . . . 2 2 . 1 . . . . . . 3 . . . . . 1 . . 1 Terminal Hacks 142 | . 11 . . 10 5 27 4 11 1 . 1 13 . 22 2 . 17 . 4 12 . 1 1 Record 50 | . 1 . . . . 25 . . . . . 11 . 4 1 . 5 . . 3 . . . Part Schematic 6 | . . . . 1 . . . . . . . . . . . . 4 . . 1 . . . Robot Analysis 6 | . . . . 1 . . . . . . . . . 1 . . 4 . . . . . . Prototype ID Bank 13 | . 4 . . 1 2 . 1 . . . . . . 1 . . 4 . . . . . . Open Door 15 | . . . . . 2 . . 7 . . 1 2 . . 1 . . . 1 1 . . . Level Access Points 3 | . . . . . . . . . . . . . . 1 . . . . . 1 . 1 . Branch Access Points 6 | . . . . 1 . . 1 . . . . . . 1 . . . . 1 1 . . 1 Emergency Access Points 2 | . . . . 1 . . . . . . . . . 1 . . . . . . . . . Terminal Index 3 | . 1 . . . . . . 1 . . . . . . . . . . . 1 . . . Recycling Unit Index 1 | . . . . . . 1 . . . . . . . . . . . . . . . . . Scanalyzer Index 1 | . . . . . . . . . . . . . . . . . . . . 1 . . . Garrison Index 1 | . . . . . . . . . . . . . . 1 . . . . . . . . . Alert Level 4 | . 1 . . 1 . . . . . . . . . 1 . . . . . 1 . . . Unreport Threat 4 | . . . . 2 . . . 2 . . . . . . . . . . . . . . . Locate Traps 2 | . 1 . . . . . . 1 . . . . . . . . . . . . . . . Transport Status 1 | . 1 . . . . . . . . . . . . . . . . . . . . . . Recall Investigation 3 | . 1 . . . . . . . . . . . . 2 . . . . . . . . . Recall Extermination 4 | . . . . . . . . . . . . . . 3 . . . . 1 . . . . Recall Reinforcements 3 | . . . . . . . . . 1 . . . . 2 . . . . . . . . . Recall Assault 1 | . . . . . . . . . . . . . . 1 . . . . . . . . . Hauler Manifests 3 | . . . . . . . 1 . . . . . . 1 . . . . 1 . . . . Registered Components 3 | . 1 . . . . . 1 . . . . . . 1 . . . . . . . . . Registered Prototypes 2 | . . . . . . . . . . . . . . 1 . . . . . 1 . . . Zone Layout 5 | . . . . 2 1 1 . . . . . . . . . . . . . 1 . . . Fabricator Hacks 4 | . . . . . . . 2 . . . . . . 2 . . . . . . . . . Network Status 3 | . . . . . . . 1 . . . . . . 2 . . . . . . . . . Load Schematic 1 | . . . . . . . 1 . . . . . . . . . . . . . . . . Repair Station Hacks 12 | . . . . 2 2 . 2 . . . . . . 2 . . . . 2 2 . . . Scan Component 6 | . . . . 1 1 . 1 . . . . . . 1 . . . . 1 1 . . . Repair 6 | . . . . 1 1 . 1 . . . . . . 1 . . . . 1 1 . . . Recycling Unit Hacks 12 | . . . . 2 1 2 4 . . . . . . 3 . . . . . . . . . Report Inventory 1 | . . . . . . . 1 . . . . . . . . . . . . . . . . Retrieve Components 11 | . . . . 2 1 2 3 . . . . . . 3 . . . . . . . . . Scanalyzer 12 | . . . . 5 . . . . . . . . . . . . . . 2 3 . 2 . Insert Component 9 | . . . . 2 . . . . . . . . . . . . . . 2 3 . 2 . Analyze 3 | . . . . 3 . . . . . . . . . . . . . . . . . . . Garrison Access Hacks 6 | . . . . . 1 . 1 . . . . . . 2 . . . . . 1 . . 1 Unlock Access 1 | . . . . . . . . . . . . . . . . . . . . . . . 1 Seal Access 5 | . . . . . 1 . 1 . . . . . . 2 . . . . . 1 . . . Unauthorized Hacks 83 | . 6 . . 16 7 10 9 5 1 . . . . 15 . . . . 3 10 . . 1 Terminals 73 | . 6 . . 15 7 7 6 5 1 . . . . 13 . . . . 2 10 . . 1 Track 13 | . . . . 5 2 . 1 1 . . . . . 1 . . . . . 3 . . . Assimilate 6 | . . . . . . . 2 . 1 . . . . 1 . . . . . 2 . . . Botnet 25 | . 2 . . 3 3 3 2 2 . . . . . 3 . . . . 2 5 . . . Detonate 1 | . . . . . . . . 1 . . . . . . . . . . . . . . . Disrupt 1 | . . . . . . . . 1 . . . . . . . . . . . . . . . Operators 2 | . . . . . . . 1 . . . . . . 1 . . . . . . . . . Skim 24 | . 4 . . 7 2 4 . . . . . . . 7 . . . . . . . . . Sabotage 1 | . . . . . . . . . . . . . . . . . . . . . . . 1 Fabricators 2 | . . . . . . . 1 . . . . . . 1 . . . . . . . . . Haulers 2 | . . . . . . . 1 . . . . . . 1 . . . . . . . . . Repair Stations 2 | . . . . 1 . . . . . . . . . . . . . . 1 . . . . Mechanics 2 | . . . . 1 . . . . . . . . . . . . . . 1 . . . . Recycling Units 6 | . . . . . . 3 2 . . . . . . 1 . . . . . . . . . Recyclers 2 | . . . . . . . 1 . . . . . . 1 . . . . . . . . . Tunnel 4 | . . . . . . 3 1 . . . . . . . . . . . . . . . . Scanalyzers . | . . . . . . . . . . . . . . . . . . . . . . . . Garrison Access . | . . . . . . . . . . . . . . . . . . . . . . . . Data Cores Recovered 2 | . 1 . . . . . . . . . . . . 1 . . . . . . . . . Used 1 | . . . . . . . . . . . . . . 1 . . . . . . . . . Hacking Detections 86 | . 7 . . 11 5 4 11 7 2 . . . . 16 . . . . 6 11 . 4 2 Full Trace Events 23 | . 3 . . 4 2 . 4 1 2 . . . . 2 . . . . 1 3 . . 1 Feedback Events 2 | . . . . . . . . . . . . . . 1 . . . . . 1 . . . Corruption 1 | . . . . . . . . . . . . . . . . . . . . 1 . . . Hackware Fried 1 | . . . . . . . . . . . . . . 1 . . . . . . . . . Feedback Blocked . | . . . . . . . . . . . . . . . . . . . . . . . . Robot Schematics Acquired . | . . . . . . . . . . . . . . . . . . . . . . . . Robots Built . | . . . . . . . . . . . . . . . . . . . . . . . . Authchips . | . . . . . . . . . . . . . . . . . . . . . . . . Time . | . . . . . . . . . . . . . . . . . . . . . . . . Total Robot Build Rating . | . . . . . . . . . . . . . . . . . . . . . . . . Part Schematics Acquired 10 | . . . . 2 . . . . . . . . . . . . 4 . . 1 . 3 . Parts Built . | . . . . . . . . . . . . . . . . . . . . . . . . Authchips . | . . . . . . . . . . . . . . . . . . . . . . . . Time . | . . . . . . . . . . . . . . . . . . . . . . . . Total Part Build Rating . | . . . . . . . . . . . . . . . . . . . . . . . . Parts Repaired 6 | . . . . 1 1 . 1 . . . . . . 1 . . . . 1 1 . . . Time 359 | . . . . 136 32 . 13 . . . . . . 50 . . . . 108 20 . . . Parts Recycled . | . . . . . . . . . . . . . . . . . . . . . . . . Recycled Matter . | . . . . . . . . . . . . . . . . . . . . . . . . Retrieved Matter . | . . . . . . . . . . . . . . . . . . . . . . . . Retrieved Components 40 | . . . . 15 1 13 11 . . . . . . . . . . . . . . . . Parts Scanalyzed 2 | . . . . 2 . . . . . . . . . . . . . . . . . . . Part Schematics Acquired 1 | . . . . 1 . . . . . . . . . . . . . . . . . . . Parts Damaged 1 | . . . . 1 . . . . . . . . . . . . . . . . . . . Bothacking | -11 -10 -10 -10 -8 -8 -8 -6 -6 -5 -5 -5 -5 -4 -4 -4 -4 -4 -3 -3 -3 -2 -2 -1 ------------ Run | Yrd Mat Min Sub Mat Sto Rec Fac Ext Fac Upp Upp War Pro Fac Upp Upp Zhi Pro Res Qua Res Tes Acc Used RIF Installer . | . . . . . . . . . . . . . . . . . . . . . . . . Robots Hacked . | . . . . . . . . . . . . . . . . . . . . . . . . Non-combat . | . . . . . . . . . . . . . . . . . . . . . . . . Combat . | . . . . . . . . . . . . . . . . . . . . . . . . Robot Hacks Applied . | . . . . . . . . . . . . . . . . . . . . . . . . Relay Couplers Released 4 | . . . . . . . . . . . . . . . . . . . . . 4 . . Machine Destruction 4 | . . . . . . . . . . . . . . . . . . . . . 4 . . Fabnet Peak Effective % . | . . . . . . . . . . . . . . . . . . . . . . . . Robots Rewired 27 | . . . . . . 9 . 13 . . . 5 . . . . . . . . . . . Allies Hacked . | . . . . . . . . . . . . . . . . . . . . . . . . Hacks Repelled . | . . . . . . . . . . . . . . . . . . . . . . . . Allies | -11 -10 -10 -10 -8 -8 -8 -6 -6 -5 -5 -5 -5 -4 -4 -4 -4 -4 -3 -3 -3 -2 -2 -1 -------- Run | Yrd Mat Min Sub Mat Sto Rec Fac Ext Fac Upp Upp War Pro Fac Upp Upp Zhi Pro Res Qua Res Tes Acc Total Allies 52 | . . 3 . . 10 9 1 22 1 . . 5 . . . . . . . 1 . . . Largest Group 10 | . . 3 1 . 10 8 1 8 2 . . 5 . . . . . . . 1 . . . Highest-Rated Group 256 | . . 40 16 . 173 144 26 249 65 . . 256 . . . . . . . 26 . . . Highest-Rated Ally 159 | . . 16 16 . 29 34 26 159 39 . . 68 . . . . . . . 26 . . . Total Orders 2 | . . 1 . . . 1 . . . . . . . . . . . . . . . . . ROAM 1 | . . 1 . . . . . . . . . . . . . . . . . . . . . COLLECT 1 | . . . . . . 1 . . . . . . . . . . . . . . . . . Ally Attacks 299 | . . 13 11 . 57 10 . 204 2 . . 2 . . . . . . . . . . . Total Damage 4553 | . . 135 47 . 640 285 . 3221 53 . . 172 . . . . . . . . . . . Kills 43 | . . 3 . . 10 6 . 24 . . . . . . . . . . . . . . . Allies Corrupted 3 | . . . . . . 1 1 1 . . . . . . . . . . . . . . . Allies Melted 2 | . . . . . . . . . . . . . . . . . . . . . 2 . . Intel | -11 -10 -10 -10 -8 -8 -8 -6 -6 -5 -5 -5 -5 -4 -4 -4 -4 -4 -3 -3 -3 -2 -2 -1 ------- Run | Yrd Mat Min Sub Mat Sto Rec Fac Ext Fac Upp Upp War Pro Fac Upp Upp Zhi Pro Res Qua Res Tes Acc Active Infowar (turns) 9372 | . . 528 264 1156 150 617 749 383 89 532 200 395 327 1055 392 121 81 366 590 723 534 120 . Optics 5359 | . . . . . . . . 4 89 482 200 395 327 1055 392 121 81 366 590 723 534 . . Sensors 8472 | . . 500 264 1156 150 617 709 379 88 521 200 382 315 1053 392 121 71 336 572 526 . 120 . Terrain 2582 | . . . . 112 150 617 429 . . 529 198 246 301 . . . . . . . . . . Seismic 28 | . . 28 . . . . . . . . . . . . . . . . . . . . . Jamming 899 | . . . . . . . . . . . . . . . . . . . . 369 530 . . Robot Analysis Total 6 | . . . . 1 . . . . . . . . . 1 . . 4 . . . . . . Derelict Logs Recovered 7 | . . 2 . . . . . . . 3 2 . . . . . . . . . . . . Drone Launches . | . . . . . . . . . . . . . . . . . . . . . . . . Drone Recoveries . | . . . . . . . . . . . . . . . . . . . . . . . . Exploration | -11 -10 -10 -10 -8 -8 -8 -6 -6 -5 -5 -5 -5 -4 -4 -4 -4 -4 -3 -3 -3 -2 -2 -1 ------------- Run | Yrd Mat Min Sub Mat Sto Rec Fac Ext Fac Upp Upp War Pro Fac Upp Upp Zhi Pro Res Qua Res Tes Acc Turns Passed 13972 | 8 899 656 643 1975 150 617 751 736 89 532 200 395 327 1055 392 121 81 366 590 723 918 1556 192 Spaces Moved 16818 | 7 439 542 422 1261 284 813 1356 819 186 998 522 791 532 2103 457 282 143 593 968 937 1011 1049 303 Core 192 | . 2 . . . . . . . . . . . . . . . . . . . . 88 102 Treads 361 | . . . . . . . . . . . . . . . . . . . . . 273 88 . Legs 1040 | 7 95 . . 285 . . . . . . . . . . . . . . . . . 653 . Wheels 1733 | . 342 542 422 427 . . . . . . . . . . . . . . . . . . . Hover 13492 | . . . . 549 284 813 1356 819 186 998 522 791 532 2103 457 282 143 593 968 937 738 220 201 Flight . | . . . . . . . . . . . . . . . . . . . . . . . . Fastest Speed 30 | 120 100 115 115 42 42 42 34 34 34 34 34 30 38 38 43 43 43 43 40 30 40 48 50 Average Speed 59 | 120 158 115 129 113 49 42 38 34 34 34 34 39 38 42 43 43 43 43 40 45 77 102 56 Slowest Speed 1400 | 120 1400 115 130 210 102 106 102 98 34 34 34 95 95 48 43 43 43 48 98 100 170 200 100 Overloaded Moves 78 | . . . . . . . . . . . . . . . . . . . . 78 . . . Propulsion Burnouts . | . . . . . . . . . . . . . . . . . . . . . . . . Robots Hopped . | . . . . . . . . . . . . . . . . . . . . . . . . Potential Cave-ins 26 | . . . . 2 . . . 7 3 . . 5 . . . . . . . 7 . 2 . Cave-ins Triggered 1 | . . . . . . . . . . . . 1 . . . . . . . . . . . Teleports 1 | . . . . . . . . . . . . . . . . . . . . 1 . . . Exploration Rate (%) 57 | 2 60 97 30 84 52 98 40 66 6 91 73 90 74 51 65 63 61 85 25 88 21 48 10 Regions Visited 23 Branch Regions 15 Pre-discovered Areas 7 | . . . . . . 3 1 . . . . . . . . . 3 . . . . . . Known Exits Taken 17 | . . . . 1 . . 1 1 1 1 1 1 1 1 1 1 1 1 1 1 1 1 . Unknown Exits Taken 6 | 1 1 1 1 . 1 1 . . . . . . . . . . . . . . . . . Scrap Searched 13 | . . 1 . . . . . . . 4 2 . 1 . . 1 . 4 . . . . . Spaces Dug 233 | . 2 . 14 45 . 2 18 25 7 15 2 1 17 26 14 . . 7 18 13 4 3 . Terrain Destroyed 1063 | . 24 . 117 120 17 12 74 69 9 43 5 7 33 41 29 . . 19 26 53 13 352 . Melee 31 | . 2 . . 1 . . 7 . . . . . . . . . . . 14 6 . 1 . Projectile 371 | . . . . 47 . 12 15 62 9 43 5 7 33 41 29 . . 16 4 19 13 16 . AOE 626 | . 22 . 117 72 17 . 52 7 . . . . . . . . . 3 8 28 . 300 . Terrain Rammed . | . . . . . . . . . . . . . . . . . . . . . . . . Walls Destroyed . | . . . . . . . . . . . . . . . . . . . . . . . . Machines Disabled . | . . . . . . . . . . . . . . . . . . . . . . . . Actions | -11 -10 -10 -10 -8 -8 -8 -6 -6 -5 -5 -5 -5 -4 -4 -4 -4 -4 -3 -3 -3 -2 -2 -1 --------- Run | Yrd Mat Min Sub Mat Sto Rec Fac Ext Fac Upp Upp War Pro Fac Upp Upp Zhi Pro Res Qua Res Tes Acc Total 19542 | 6 549 559 483 1585 292 1009 1501 1154 202 1127 533 872 619 2218 622 281 161 677 1119 1165 1127 1362 319 Wait 854 | . 6 2 5 62 1 89 25 43 4 55 . 17 47 27 137 . . 51 73 123 31 56 . Move 16794 | 6 438 541 421 1260 283 812 1355 818 185 997 521 789 531 2102 456 281 142 592 967 936 1010 1048 303 Hop . | . . . . . . . . . . . . . . . . . . . . . . . . Pick Up 186 | . 19 3 9 38 3 9 21 7 2 4 . 8 1 7 . . 3 2 8 5 20 16 1 Fast Attach 100 | . 11 . . 6 . 2 10 1 . 1 . 10 . 7 . . 5 . 7 2 6 29 3 Attach 94 | . 5 1 . 26 1 2 4 3 2 2 . 1 1 5 . . 1 3 1 9 11 15 1 Detach 64 | . 7 1 . 15 2 . 5 2 . . . 2 1 3 . . . 1 1 5 5 13 1 Swap 112 | . 4 2 13 12 . 1 9 12 . 3 4 . 1 4 . . 3 2 9 17 2 14 . Drop 155 | . 11 . 5 28 . 4 12 6 . 3 . 18 2 6 . . 7 1 11 7 14 19 1 Fire 843 | . 40 9 30 136 2 26 41 101 9 62 8 9 34 56 29 . . 25 22 41 27 134 2 Melee 95 | . 7 . . 1 . 15 19 11 . . . . . . . . . . 20 20 . 2 . Ram 11 | . 1 . . 1 . . . . . . . . 1 . . . . . . . . 1 7 Kick . | . . . . . . . . . . . . . . . . . . . . . . . . Crush 2 | . . . . . . . . . . . . . . . . . . . . . 1 1 . Escape Stasis 78 | . . . . . . . . 63 . . . 1 . . . . . . . . . 14 . Rewire 154 | . . . . . . 49 . 87 . . . 17 . 1 . . . . . . . . . Trap . | . . . . . . . . . . . . . . . . . . . . . . . . Miscellaneous . | . . . . . . . . . . . . . . . . . . . . . . . . Route ------- -11/Scrapyard -10/Materials (discovered 3 exits: [*Mat x2] / [*Min]) -10/Mines (discovered 3 exits: [*Mat x2] / [*Sub]) -10/Subcaves -8/Materials (discovered 3 exits: [*Fac x2] / *Sto) -8/Storage -8/Recycling -6/Factory (discovered 6 exits: *Fac x2 / Low x2 / *Ext x2) -6/Extension (discovered 2 exits: *Fac / *Cet) -5/Factory -5/Upper Caves -5/Upper Caves -5/Warlord -4/Proximity Caves -4/Factory (discovered 7 exits: *Res x4 / *Upp x2 / Arm) -4/Upper Caves -4/Upper Caves (discovered 2 exits: *Res / *Zhi) -4/Zhirov -3/Proximity Caves -3/Research (discovered 2 exits: *Qua x2) -3/Quarantine -2/Research -2/Testing -1/Access (discovered 2 exits: Com / Gar) History --------- Turn | Location | Event 1 | -11/Scrapyard | Discovered new exit (range 3) 9 | -11/Scrapyard | Entered Materials 314 | -10/Materials | Core integrity fell below 50% 316 | -10/Materials | Build established: Mutant 333 | -10/Materials | Lost 6 parts (1p2n3w) 439 | -10/Materials | Discovered new exit (range 14) 736 | -10/Materials | Discovered new exit (range 14) 857 | -10/Materials | Discovered new exit (range 3) 908 | -10/Materials | Entered Mines 917 | -10/Mines | Assisted by bots powering up and referring to "LRC-V3" 960 | -10/Mines | Build established: Scavenger-Mutant 1029 | -10/Mines | Found a damaged Exp. Sensor Array with a note attached 1031 | -10/Mines | Found Prototype Device 1033 | -10/Mines | Identified Exp. Sensor Array 1206 | -10/Mines | Learned 2 Materials zone layouts 1214 | -10/Mines | Discovered new exit (range 5) 1273 | -10/Mines | Discovered new exit (range 5) 1318 | -10/Mines | Build established: Mutant 1443 | -10/Mines | Learned Materials emergency access door positions 1558 | -10/Mines | Discovered new exit (range 6) 1564 | -10/Mines | Entered Subcaves 1564 | -10/Subcaves | Accompanied by 1 ally 1565 | -10/Subcaves | Approached by a straggling Scientist 1651 | -10/Subcaves | Ambushed by swarm of Subdwellers 1661 | -10/Subcaves | Core integrity fell below 20% 1770 | -10/Subcaves | A Subdweller sparked back to life 1770 | -10/Subcaves | A Subdweller sparked back to life 1770 | -10/Subcaves | A Subdweller sparked back to life 1783 | -10/Subcaves | Found Prototype Device 1929 | -10/Subcaves | Discovered new exit (range 12) 2091 | -10/Subcaves | Lost 3 allies 2207 | -10/Subcaves | Entered Materials 2207 | -8/Materials | Evolved 4 slots: Propulsion x1, Utility x2, Weapon x1 2209 | -8/Materials | Identified Power Bank 2210 | -8/Materials | Attached Power Bank, gained temporary slots: Power x3 2559 | -8/Materials | Build established: Scavenger-Tank 2655 | -8/Materials | Discovered new exit (range 16) 2749 | -8/Materials | Discovered new exit (range 4) 3083 | -8/Materials | Lost 4 parts (2n2w) 3293 | -8/Materials | Discovered new exit (range 4) 3636 | -8/Materials | Repaired Broken Exp. Sensor Array? 3787 | -8/Materials | Lost 3 parts (1n2w) 3938 | -8/Materials | Identified exit to Storage 4182 | -8/Materials | Entered Storage 4184 | -8/Storage | Build established: Mutant 4244 | -8/Storage | Assisted by bots powering up and referring to "LRC-V3" 4257 | -8/Storage | Repaired Hrd. Light Armor Plating 4331 | -8/Storage | Used back door to open Recycling access 4331 | -8/Storage | Discovered new exit (range 5) 4332 | -8/Storage | Entered Recycling 4346 | -8/Recycling | Lost 4 allies 4651 | -8/Recycling | Entered Scraplab 4775 | -8/Recycling | Build established: Commander-Mutant 4784 | -8/Recycling | Discovered new exit (range 16) 4949 | -8/Recycling | Entered Factory 4949 | -6/Factory | Evolved 4 slots: Propulsion x2, Utility x2 4956 | -6/Factory | Murdered 5 allies 4976 | -6/Factory | Discovered new exit (range 5) 4983 | -6/Factory | Identified exit to Factory 5204 | -6/Factory | Repaired Grenade Launcher 5234 | -6/Factory | Build established: Scout 5377 | -6/Factory | Lost 4 parts (1p3n) 5427 | -6/Factory | Discovered exit to Factory (range 12) 5434 | -6/Factory | Identified exit to Lower Caves 5434 | -6/Factory | Identified exit to Extension 5498 | -6/Factory | Cargo convoy interrupted 5618 | -6/Factory | Build established: Mutant 5700 | -6/Factory | Entered Extension 5764 | -6/Extension | Rescued a captive Derelict 5764 | -6/Extension | Rescued a captive Derelict 5819 | -6/Extension | Rescued a captive Derelict 5819 | -6/Extension | Rescued a captive Derelict 5908 | -6/Extension | Lost 4 allies 5971 | -6/Extension | Lost 3 allies 6050 | -6/Extension | First assault squad dispatched 6208 | -6/Extension | Rescued a captive Derelict 6233 | -6/Extension | Lost 8 allies 6237 | -6/Extension | Rescued a captive Derelict 6241 | -6/Extension | Rescued a captive Derelict 6258 | -6/Extension | Rescued a captive Derelict 6282 | -6/Extension | Rescued A7 6341 | -6/Extension | Rescued a captive Derelict 6387 | -6/Extension | Discovered exit to Factory (range 10) 6387 | -6/Extension | Discovered new exit (range 6) 6400 | -6/Extension | Identified exit to Cetus 6425 | -6/Extension | Murdered A7 6427 | -6/Extension | Extracted ID and sensor layout for unrecognized location from A7's data core 6436 | -6/Extension | Entered Factory 6436 | -5/Factory | Accompanied by 1 ally 6436 | -5/Factory | Evolved 2 slots: Propulsion x1, Utility x1 6497 | -5/Factory | Discovered new exit (range 21) 6525 | -5/Factory | Identified exit to Upper Caves 6525 | -5/Factory | Entered Upper Caves 6531 | -5/Upper Caves | Learned Factory trap positions 6542 | -5/Upper Caves | Learned Factory terminal intel 6593 | -5/Upper Caves | Encountered a Warlord checkpoint 6721 | -5/Upper Caves | Learned 4 Factory zone layouts 6731 | -5/Upper Caves | Build established: Scout 7043 | -5/Upper Caves | Discovered new exit (range 15) 7048 | -5/Upper Caves | Identified exit to Upper Caves 7057 | -5/Upper Caves | Entered another Upper Caves area 7090 | -5/Upper Caves | Learned Factory security intel 7178 | -5/Upper Caves | Learned Factory trap positions 7220 | -5/Upper Caves | Discovered new exit (range 13) 7223 | -5/Upper Caves | Identified exit to Warlord 7257 | -5/Upper Caves | Entered Warlord 7267 | -5/Warlord | Discovered new exit (range 9) 7388 | -5/Warlord | Found Prototype Special Weapon 7388 | -5/Warlord | Identified RU-N14's Throwing Claymores v3 7392 | -5/Warlord | Found RU-N14's Throwing Claymores v3 7394 | -5/Warlord | Found RU-N14's Throwing Claymores v3 7406 | -5/Warlord | Received a Watcher feed algorithm from an ecstatic Tinkerer 7407 | -5/Warlord | Ran a Watcher feed algorithm 7468 | -5/Warlord | Found Prototype Reactor 7471 | -5/Warlord | Found Prototype Device 7471 | -5/Warlord | Identified Exp. Phase Shifter 7481 | -5/Warlord | Found Prototype Hackware 7489 | -5/Warlord | Found Prototype Device 7489 | -5/Warlord | Identified Thermal Barrier 7516 | -5/Warlord | Visited the Vortex Lab 7521 | -5/Warlord | Warlord's base attacked by MAIN.C 7521 | -5/Warlord | Found Prototype Piercing Weapon 7554 | -5/Warlord | Learned Testing trap positions 7554 | -5/Warlord | Learned Armory emergency access door positions 7554 | -5/Warlord | Learned 4 Armory zone layouts 7554 | -5/Warlord | Learned Quarantine security intel 7554 | -5/Warlord | Learned Factory fabricator intel 7554 | -5/Warlord | Learned Armory terminal intel 7574 | -5/Warlord | Met Warlord 7606 | -5/Warlord | Opened side exit 7643 | -5/Warlord | Crushed by falling debris 7651 | -5/Warlord | Identified exit to Proximity Caves 7652 | -5/Warlord | Entered Proximity Caves 7654 | -4/Proximity Caves | Spotter reported a threat 7675 | -4/Proximity Caves | Lost 3 parts (2n1w) 7905 | -4/Proximity Caves | Spotted B-86 Titan 7977 | -4/Proximity Caves | Discovered new exit (range 5) 7979 | -4/Proximity Caves | Identified exit to Factory 7979 | -4/Proximity Caves | Entered Factory 7979 | -4/Factory | Evolved 2 slots: Power x1, Utility x1 7980 | -4/Factory | Identified System Mapper 7981 | -4/Factory | Loaded intel: 126 trap records 7983 | -4/Factory | Loaded intel: 26 terminal locations 7984 | -4/Factory | Loaded intel: 6 fabricator locations 8010 | -4/Factory | Identified exit to Upper Caves 8010 | -4/Factory | Identified exit to Armory 8027 | -4/Factory | Identified exit to Research 8217 | -4/Factory | System Shield fried by hacking feedback 8374 | -4/Factory | Repaired Lgt. Fission Core 8438 | -4/Factory | Learned Armory terminal intel 8730 | -4/Factory | Build established: Hacker-Scout 8801 | -4/Factory | Spotted B-86 Titan 9034 | -4/Factory | Entered Upper Caves 9035 | -4/Upper Caves | Identified exit to Upper Caves 9426 | -4/Upper Caves | Entered another Upper Caves area 9435 | -4/Upper Caves | Discovered exit to Research (range 6) 9530 | -4/Upper Caves | Discovered new exit (range 16) 9547 | -4/Upper Caves | Identified exit to Zhirov 9547 | -4/Upper Caves | Entered Zhirov 9549 | -4/Zhirov | Discovered new exit (range 3) 9559 | -4/Zhirov | Met Zhirov 9567 | -4/Zhirov | Learned location of Quarantine (-3) 9567 | -4/Zhirov | Learned location of Testing (-2) 9567 | -4/Zhirov | Learned location of Command (-1) 9571 | -4/Zhirov | Zhirov requested help retrieving the SGEMP Prototype 9578 | -4/Zhirov | Found Alien Artifact 9578 | -4/Zhirov | Identified Integrated Dissipator 9578 | -4/Zhirov | Installed Integrated Dissipator, increased core heat dissipation (+20) 9588 | -4/Zhirov | Found Alien Artifact 9626 | -4/Zhirov | Identified exit to Proximity Caves 9628 | -4/Zhirov | Entered Proximity Caves 9654 | -3/Proximity Caves | Identified Vortex Chain Reactor 9655 | -3/Proximity Caves | Identified Vortex Lance 9939 | -3/Proximity Caves | Discovered exit to Research (range 14) 9994 | -3/Proximity Caves | Entered Research 9994 | -3/Research | Evolved 2 slots: Utility x2 10025 | -3/Research | Found Prototype Device 10220 | -3/Research | Identified exit to Quarantine 10290 | -3/Research | Identified Transdimensional Reconstructor 10343 | -3/Research | Found Prototype Processor 10494 | -3/Research | Repaired Exp. Coolant Injector 10584 | -3/Research | Entered Quarantine 10609 | -3/Quarantine | Repaired Imp. Antigrav System? 10660 | -3/Quarantine | Garrison activated, responded to threat 10683 | -3/Quarantine | Identified exit to Research 10864 | -3/Quarantine | Met incapacitated Sigix Warrior 10864 | -3/Quarantine | Lockdown squad dispatched 10865 | -3/Quarantine | Acquired the access code to the Sigix quarantine chamber 10866 | -3/Quarantine | Unlocked Sigix quarantine chamber 10870 | -3/Quarantine | Found Sigix Containment Pod 11003 | -3/Quarantine | Spotted Lightning 11049 | -3/Quarantine | Found Alien Artifact 11137 | -3/Quarantine | Identified Subatomic Replicator 11144 | -3/Quarantine | Warped through subspace 11238 | -3/Quarantine | Spotted Lightning 11239 | -3/Quarantine | Spotted Lightning 11304 | -3/Quarantine | Found Alien Artifact 11307 | -3/Quarantine | Entered Research 11307 | -2/Research | Warlord forces began assault on 0b10 11307 | -2/Research | Evolved 2 slots: Utility x1, Weapon x1 11325 | -2/Research | Lost 3 parts (1n1u1w) 11342 | -2/Research | Found Quantum Capacitor 11417 | -2/Research | Research machine network offline 11419 | -2/Research | Discovered new exit (range 7) 11458 | -2/Research | Identified exit to Testing 11561 | -2/Research | Met up with Warlord 11594 | -2/Research | Build established: Mutant 11624 | -2/Research | Borebot progress halted 12142 | -2/Research | Build established: Tank 12167 | -2/Research | Spotted Executioner 12173 | -2/Research | Spotted Executioner 12187 | -2/Research | Destroyed Executioner 12225 | -2/Research | Entered Testing 12226 | -2/Testing | Loaded intel: 20 trap records 12412 | -2/Testing | Spotted PP-0YQFW4Q2AA 12432 | -2/Testing | System corruption reached 10% 12444 | -2/Testing | Destroyed PP-0YQFW4Q2AA 12552 | -2/Testing | Lost 18 parts (3p3n5u7w) 12656 | -2/Testing | Found Prototype Energy Gun 12656 | -2/Testing | Identified Hyp. EM Gauss Rifle 12811 | -2/Testing | Identified Exp. Signal Interpreter 12845 | -2/Testing | Identified Core Reset Matrix 12960 | -2/Testing | Build established: Scavenger-Gunner 12967 | -2/Testing | Found Prototype Ballistic Cannon 12967 | -2/Testing | Identified Perforator 12990 | -2/Testing | Spotted PD-9A956D6BL1 12996 | -2/Testing | Destroyed PD-9A956D6BL1 13150 | -2/Testing | Found Hellfire Missile Launcher 13153 | -2/Testing | Identified exit to Access 13195 | -2/Testing | Found Prototype Launcher 13438 | -2/Testing | Found System Mapper 13467 | -2/Testing | Spotted Striker 13470 | -2/Testing | Destroyed Striker 13472 | -2/Testing | Spotted Alpha 7 13490 | -2/Testing | Scanned by Researcher 13493 | -2/Testing | Destroyed Striker 13572 | -2/Testing | Identified Ragnarok Missile Launcher 13592 | -2/Testing | Destroyed Alpha 7 13626 | -2/Testing | Lost 10 parts (1p5n2u2w) 13704 | -2/Testing | Core integrity fell below 50% 13723 | -2/Testing | Found Prototype Hackware 13723 | -2/Testing | Identified Exp. Hacking Suite 13781 | -2/Testing | Core integrity fell below 20% 13781 | -2/Testing | Entered Access 13781 | -1/Access | Evolved 2 slots: Utility x2 13788 | -1/Access | Lost 7 parts (1p2n2u2w) 13887 | -1/Access | Identified exit to Command 13920 | -1/Access | Identified exit to Garrison 13948 | -1/Access | Lost 3 parts (2n1w) 13963 | -1/Access | Core integrity fell below 50% 13971 | -1/Access | Core integrity fell below 20% 13973 | -1/Access | Destroyed by H-81 Overseer with Heavy Linear Accelerator Last Messages --------------- COORDINATES_RETRIEVED 13966_ ALERT: Suspicious activity at Terminal A013. Dispatching Investigation squad. 13968_ Slammed into S-43 Plague. 13969_ Destabilizing: Core damaged (-80). 13969_ Knocked back. 13970_ Slammed into S-43 Plague. 13971_ Slug penetrates H-81 Overseer. 13971_ Penetrated by Slug. 13971_ S-43 Plague system corrupted by crushing effect. 13971_ S-43 Plague destroyed. 13971_ Slammed into S-43 Plague. 13972_ Acquired 14 matter. 13972_ Slug penetrates Wall. 13972_ S-43 Plague destroyed. 13972_ C-30 ARC bursts open, deploying its payload. 13972_ H-88 Terminator unfolds itself. 13973_ Slug penetrates Wall. Map ----- +----------------------------------------------------+ | ?????????????????????????????????????????????????? | | ?????????????????????????????????????????????????? | | ?????????????????????????????????????????????????? | | ?????????????????????????????????????????????????? | | ?????????????????????????????????????????????????? | | ?????????????????????????????????????????????????? | | ?????????????????????????????????????????????????? | | ?????????????????????????????????????????????????? | | ?????????????????????????????????????????????????? | | ?????????????????????????????????????????????????? | | ????????????????????????? k?????????????????????? | | ????????????????????????? ???????????????????? | | ????????????????????????? ???????????????????? | | ???????????????????????? ???????????????????? | | ???????????????????????"" Ahh#???????????????????? | | ??????????????????????""" #???????????????????? | | ???????????????????????" #???????????????????? | | ??????????????????????? #???????????????????? | | ??????????????????????? +???????????????????? | | ???????????????????????? #???????????????????? | | ???????????????????????? ????????????????????? | | ????????????????????????# h#????????????????????? | | ?????????????????######## h#????????????????????? | | ?????????????????# # %###############??????? | | ?????????????????# # # """T""" #??????? | | ?????????????????#! #@ # """ """ #??????? | | ?????????????????# ]# # #??????? | | ?????????????????# # s#% #??????? | | ?????????????????# + ssss * #??????? | | ?????????????????# # # #??????? | | ?????????????????##+###"# ###############??????? | | ??????????????????# #?# gH #??????????????????? | | ????????????????### ### ##?????????????????? | | ????????????????# A ??????????????? | | ????????????????# ??????????????? | | ????????????????# ??????????????? | | ????????????????# # #####??????????????? | | ????###########?# # #??????????????????? | | ##### """ #?# #########??????????????????? | | + "T" #?# #??????????????????????????? | | ##### #?# ######?????????????????????? | | ????# #?# #?????????????????????? | | ????# #?# #?????????????????????? | | ????# !! #?# #?????????????????????? | | ????# !! #?# " #?????????????????????? | | ##### ! #?# " "%"#?????????????????????? | | ##+########## "%" " #?????????????????????? | | " #?????????????????????? | | #?????????????????????? | | #?????????????????????? | +----------------------------------------------------+ Best States ------------- Heat Dissipation 107 Coolant Potential 120 Energy Generation 55 Energy Capacity 700 Matter Stores 500 Matter Capacity 500 Sight Range 22 Robot Scan Range 20 Terrain Scan Range 20 Terrain Scan Density 110 Jamming Range 14 Base Temperature (-) 200 Armor Coverage 1200 Core Shielding 20 Propulsion Shielding 90 Weapon Cycling 25 Phase Shifting 20 Evasion (%) 77 Targeting Accuracy 36 Target Analysis 8 Core Analysis 6 Armor Integrity Analysis 40 Recoil Reduction 6 Energy Filtering 50 Offensive Hacking 60 Defensive Hacking 10 Item Schematics ----------------- Exp. Sensor Array | -8/Materials | Scanalyzed Signal Interpreter | -8/Materials | Hacked Assault Drone Bay | -4/Zhirov | Free Exp. Heat Sink | -4/Zhirov | Free Exp. Optical Array | -4/Zhirov | Free Imp. Arc Thrower | -4/Zhirov | Free Enh. Nova Cannon | -3/Quarantine | Hacked Cld. Antigrav System | -2/Testing | Archive Shock Maul | -2/Testing | Archive Hvy. Dispersion Rifle | -2/Testing | Archive Robot Schematics ------------------ None Fabricated ------------ Nothing Repaired ---------- Exp. Sensor Array | 62% | -8/Materials | Broken Hrd. Light Armor Plating | 20% | -8/Storage Grenade Launcher | 26% | -6/Factory Lgt. Fission Core | 16% | -4/Factory Exp. Coolant Injector | 2% | -3/Research Imp. Antigrav System | 60% | -3/Quarantine Alien Tech Used ----------------- Integrated Dissipator Transdimensional Reconstructor Achievements -------------- None Challenges ------------ None Game ------ Seed GrenadeMicroInterpreter Manual? 0 Play Time 04:51:05 Cumulative 53.2 hours Start 2025.08.08 @ 00:04:02 End 2025.08.08 @ 05:10:06 Sessions 1 Manual Loads 0 Difficulty Rogue Special Mode None Game No. 15 Rogue 15 Adventurer 0 Explorer 0 Win Type - Total 1 Types 0/0/1/0/0/0/0/0/0/0 Lore% 51 Gallery% 43 Achievement% 72 Wizard Run 0 Options --------- Layout 2 ASCII 0 Keyboard 1 Movement Vi Keybinds 0 Fullscreen 1 Font 28/SwanstonBold Map View 50x52 Zoom Use 0% Tactical HUD 1 Map Filters NONE Filters NONE Steam 1 RUN: 2833ae30-8f0f-43a3-abe7-a5e881640241